{"text_format":"1","workbook":"xlsx","n_sheets":4,"sheets":["дела","форма","журнал постановлений","орган"],"not_rendered":{"charts":0,"images":0,"macros":1,"external_links":0,"defined_names":2,"comments":0,"pivot_tables":0},"unopened":[],"bounds":{"document_bytes":16777216,"sheet_cells":100000,"rows_first":2000,"rows_last":500,"rows_between":2000,"halvings":0,"cell_chars":16384,"cell_head_chars":4096},"cells_cut":0,"cells_raw":0,"read":"whole","date_system":"1900"}

{"sheet":"дела","index":0,"n_rows":8,"n_cols":13,"rows_kept":8,"cut":false,"hidden":false,"merged":[[0,0,0,1],[1,7,2,7],[1,8,2,8],[1,0,2,0],[1,1,2,1],[1,2,2,2],[1,3,2,3],[1,4,2,4],[1,5,2,5]]}
[]
[]
[null,null,null,null,null,null,{"$f":"SUM(G4:G16)","v":36666}]
["2011-11-11","666\nадрес: 6666","111","1111","1111","2011-11-11",1111,"2011-11-11","1111"]
["2022-02-02","222\nадрес: 2222","222","2222","2222","2022-02-02",2222,"2022-02-02","2222"]
["1933-03-03","333\nадрес: 3333","333","3333","3333","1933-03-03",33333,"1933-03-03","3333"]
[null,"222\nадрес: 2222"]
[null,null,null,null,null,null,null,null,null,"Тамбов,","ул.","Интернациональная,",63]

{"sheet":"форма","index":1,"n_rows":33,"n_cols":7,"rows_kept":33,"cut":false,"hidden":false,"merged":[[0,1,0,2],[1,1,1,2],[0,4,0,5],[7,4,7,5]]}
[3,"Реестр "]
[]
[101,null,{"$f":"OFFSET(дела!B3,форма!A1-0,2)","v":"3333"}]
[0,null,{"$f":"OFFSET(дела!B3,форма!A1-0,3)","v":"3333"}]
[null,null,{"$f":"OFFSET(дела!B3,форма!A1-0,0)","v":"333\nадрес: 3333"}]
[null,null,{"$f":"OFFSET(дела!B3,форма!A1-0,1)","v":"333"}]
[null,null,{"$f":"OFFSET(дела!B3,форма!A1-0,-1)","v":"1933-03-03"}]
[null,"Итого:",{"$f":"OFFSET(дела!B3,форма!A1-0,5)","v":33333},null,"пароль для снятие защиты листа(ов): 000"]
[]
[]
[]
[]
[]
[]
[]
[]
[]
[]
[]
[]
[]
[]
[null,null,null,null,null,null,9]
[]
[]
[]
[]
[]
[]
[]
[]
[]
[null,null,null,null,null,null,1]

{"sheet":"журнал постановлений","index":2,"n_rows":10,"n_cols":13,"rows_kept":10,"cut":false,"hidden":false,"merged":[[4,10,5,11],[5,1,5,3],[0,0,0,12],[4,12,5,12],[4,1,4,6],[4,8,5,9],[4,0,6,0],[4,7,6,7],[5,4,6,4],[5,5,6,5],[5,6,6,6],[2,8,3,12],[1,0,1,12]]}
["Журнал "]
[]
[]
[]
[]
[]
[null,null,null,null,null,null,null,null,null,null,null,null,{"$f":"SUM(M8:M19)","v":0}]
[1,"2011-11-11","111"]
[2,"2022-02-02","222"]
[3,"1933-03-03","333"]

{"sheet":"орган","index":3,"n_rows":1545,"n_cols":4,"rows_kept":1545,"cut":false,"hidden":false,"merged":[[0,0,0,2]]}
["органы"]
["наименование","должность","адрес:"]
[111,null,"адрес: 1111",{"$f":"A3&\"\"&CHAR(10)&C3","v":"111\nадрес: 1111"}]
[222,null,"адрес: 2222",{"$f":"A4&\"\"&CHAR(10)&C4","v":"222\nадрес: 2222"}]
[333,null,"адрес: 3333","333\nадрес: 3333"]
[444,null,"адрес: 4444","444\nадрес: 4444"]
[555,null,"адрес: 5555","555\nадрес: 5555"]
[666,null,"адрес: 6666","666\nадрес: 6666"]
[777,null,"адрес: 7777","777\nадрес: 7777"]
[888,null,"адрес: 8888","888\nадрес: 8888"]
[999,null,"адрес: 9999","999\nадрес: 9999"]
[1110,null,"адрес: 11110","1110\nадрес: 11110"]
[null,null,null,"\n"]
[null,null,null,"\n"]
[null,null,null,"\n"]
[null,null,null,"\n"]
[null,null,null,"\n"]
[null,null,null,"\n"]
[null,null,null,"\n"]
[null,null,null,"\n"]
[null,null,null,"\n"]
[null,null,null,"\n"]
[null,null,null,"\n"]
[null,null,null,"\n"]
[null,null,null,"\n"]
[null,null,null,"\n"]
[null,null,null,"\n"]
[null,null,null,"\n"]
[null,null,null,"\n"]
[null,null,null,"\n"]
[null,null,null,"\n"]
[null,null,null,"\n"]
[null,null,null,"\n"]
[null,null,null,"\n"]
[null,null,null,"\n"]
[null,null,null,"\n"]
[null,null,null,"\n"]
[null,null,null,"\n"]
[null,null,null,"\n"]
[null,null,null,"\n"]
[null,null,null,"\n"]
[null,null,null,"\n"]
[null,null,null,"\n"]
[null,null,null,"\n"]
[null,null,null,"\n"]
[null,null,null,"\n"]
[null,null,null,"\n"]
[null,null,null,"\n"]
[null,null,null,"\n"]
[null,null,null,"\n"]
[null,null,null,"\n"]
[null,null,null,"\n"]
[null,null,null,"\n"]
[null,null,null,"\n"]
[null,null,null,"\n"]
[null,null,null,"\n"]
[null,null,null,"\n"]
[null,null,null,"\n"]
[null,null,null,"\n"]
[null,null,null,"\n"]
[null,null,null,"\n"]
[null,null,null,"\n"]
[null,null,null,"\n"]
[null,null,null,"\n"]
[null,null,null,"\n"]
[null,null,null,"\n"]
[null,null,null,"\n"]
[null,null,null,{"$f":"A68&\"\"&CHAR(10)&C68","v":"\n"}]
[null,null,null,"\n"]
[null,null,null,"\n"]
[null,null,null,"\n"]
[null,null,null,"\n"]
[null,null,null,"\n"]
[null,null,null,"\n"]
[null,null,null,"\n"]
[null,null,null,"\n"]
[null,null,null,"\n"]
[null,null,null,"\n"]
[null,null,null,"\n"]
[null,null,null,"\n"]
[null,null,null,"\n"]
[null,null,null,"\n"]
[null,null,null,"\n"]
[null,null,null,"\n"]
[null,null,null,"\n"]
[null,null,null,"\n"]
[null,null,null,"\n"]
[null,null,null,"\n"]
[null,null,null,"\n"]
[null,null,null,"\n"]
[null,null,null,"\n"]
[null,null,null,"\n"]
[null,null,null,"\n"]
[null,null,null,"\n"]
[null,null,null,"\n"]
[null,null,null,"\n"]
[null,null,null,"\n"]
[null,null,null,"\n"]
[null,null,null,"\n"]
[null,null,null,"\n"]
[null,null,null,"\n"]
[null,null,null,"\n"]
[null,null,null,"\n"]
[null,null,null,"\n"]
[null,null,null,"\n"]
[null,null,null,"\n"]
[null,null,null,"\n"]
[null,null,null,"\n"]
[null,null,null,"\n"]
[null,null,null,"\n"]
[null,null,null,"\n"]
[null,null,null,"\n"]
[null,null,null,"\n"]
[null,null,null,"\n"]
[null,null,null,"\n"]
[null,null,null,"\n"]
[null,null,null,"\n"]
[null,null,null,"\n"]
[null,null,null,"\n"]
[null,null,null,"\n"]
[null,null,null,"\n"]
[null,null,null,"\n"]
[null,null,null,"\n"]
[null,null,null,"\n"]
[null,null,null,"\n"]
[null,null,null,"\n"]
[null,null,null,"\n"]
[null,null,null,"\n"]
[null,null,null,"\n"]
[null,null,null,"\n"]
[null,null,null,"\n"]
[null,null,null,{"$f":"A132&\"\"&CHAR(10)&C132","v":"\n"}]
[null,null,null,"\n"]
[null,null,null,"\n"]
[null,null,null,"\n"]
[null,null,null,"\n"]
[null,null,null,"\n"]
[null,null,null,"\n"]
[null,null,null,"\n"]
[null,null,null,"\n"]
[null,null,null,"\n"]
[null,null,null,"\n"]
[null,null,null,"\n"]
[null,null,null,"\n"]
[null,null,null,"\n"]
[null,null,null,"\n"]
[null,null,null,"\n"]
[null,null,null,"\n"]
[null,null,null,"\n"]
[null,null,null,"\n"]
[null,null,null,"\n"]
[null,null,null,"\n"]
[null,null,null,"\n"]
[null,null,null,"\n"]
[null,null,null,"\n"]
[null,null,null,"\n"]
[null,null,null,"\n"]
[null,null,null,"\n"]
[null,null,null,"\n"]
[null,null,null,"\n"]
[null,null,null,"\n"]
[null,null,null,"\n"]
[null,null,null,"\n"]
[null,null,null,"\n"]
[null,null,null,"\n"]
[null,null,null,"\n"]
[null,null,null,"\n"]
[null,null,null,"\n"]
[null,null,null,"\n"]
[null,null,null,"\n"]
[null,null,null,"\n"]
[null,null,null,"\n"]
[null,null,null,"\n"]
[null,null,null,"\n"]
[null,null,null,"\n"]
[null,null,null,"\n"]
[null,null,null,"\n"]
[null,null,null,"\n"]
[null,null,null,"\n"]
[null,null,null,"\n"]
[null,null,null,"\n"]
[null,null,null,"\n"]
[null,null,null,"\n"]
[null,null,null,"\n"]
[null,null,null,"\n"]
[null,null,null,"\n"]
[null,null,null,"\n"]
[null,null,null,"\n"]
[null,null,null,"\n"]
[null,null,null,"\n"]
[null,null,null,"\n"]
[null,null,null,"\n"]
[null,null,null,"\n"]
[null,null,null,"\n"]
[null,null,null,"\n"]
[null,null,null,{"$f":"A196&\"\"&CHAR(10)&C196","v":"\n"}]
[null,null,null,"\n"]
[null,null,null,"\n"]
[null,null,null,"\n"]
[null,null,null,"\n"]
[null,null,null,"\n"]
[null,null,null,"\n"]
[null,null,null,"\n"]
[null,null,null,"\n"]
[null,null,null,"\n"]
[null,null,null,"\n"]
[null,null,null,"\n"]
[null,null,null,"\n"]
[null,null,null,"\n"]
[null,null,null,"\n"]
[null,null,null,"\n"]
[null,null,null,"\n"]
[null,null,null,"\n"]
[null,null,null,"\n"]
[null,null,null,"\n"]
[null,null,null,"\n"]
[null,null,null,"\n"]
[null,null,null,"\n"]
[null,null,null,"\n"]
[null,null,null,"\n"]
[null,null,null,"\n"]
[null,null,null,"\n"]
[null,null,null,"\n"]
[null,null,null,"\n"]
[null,null,null,"\n"]
[null,null,null,"\n"]
[null,null,null,"\n"]
[null,null,null,"\n"]
[null,null,null,"\n"]
[null,null,null,"\n"]
[null,null,null,"\n"]
[null,null,null,"\n"]
[null,null,null,"\n"]
[null,null,null,"\n"]
[null,null,null,"\n"]
[null,null,null,"\n"]
[null,null,null,"\n"]
[null,null,null,"\n"]
[null,null,null,"\n"]
[null,null,null,"\n"]
[null,null,null,"\n"]
[null,null,null,"\n"]
[null,null,null,"\n"]
[null,null,null,"\n"]
[null,null,null,"\n"]
[null,null,null,"\n"]
[null,null,null,"\n"]
[null,null,null,"\n"]
[null,null,null,"\n"]
[null,null,null,"\n"]
[null,null,null,"\n"]
[null,null,null,"\n"]
[null,null,null,"\n"]
[null,null,null,"\n"]
[null,null,null,"\n"]
[null,null,null,"\n"]
[null,null,null,"\n"]
[null,null,null,"\n"]
[null,null,null,"\n"]
[null,null,null,{"$f":"A260&\"\"&CHAR(10)&C260","v":"\n"}]
[null,null,null,"\n"]
[null,null,null,"\n"]
[null,null,null,"\n"]
[null,null,null,"\n"]
[null,null,null,"\n"]
[null,null,null,"\n"]
[null,null,null,"\n"]
[null,null,null,"\n"]
[null,null,null,"\n"]
[null,null,null,"\n"]
[null,null,null,"\n"]
[null,null,null,"\n"]
[null,null,null,"\n"]
[null,null,null,"\n"]
[null,null,null,"\n"]
[null,null,null,"\n"]
[null,null,null,"\n"]
[null,null,null,"\n"]
[null,null,null,"\n"]
[null,null,null,"\n"]
[null,null,null,"\n"]
[null,null,null,"\n"]
[null,null,null,"\n"]
[null,null,null,"\n"]
[null,null,null,"\n"]
[null,null,null,"\n"]
[null,null,null,"\n"]
[null,null,null,"\n"]
[null,null,null,"\n"]
[null,null,null,"\n"]
[null,null,null,"\n"]
[null,null,null,"\n"]
[null,null,null,"\n"]
[null,null,null,"\n"]
[null,null,null,"\n"]
[null,null,null,"\n"]
[null,null,null,"\n"]
[null,null,null,"\n"]
[null,null,null,"\n"]
[null,null,null,"\n"]
[null,null,null,"\n"]
[null,null,null,"\n"]
[null,null,null,"\n"]
[null,null,null,"\n"]
[null,null,null,"\n"]
[null,null,null,"\n"]
[null,null,null,"\n"]
[null,null,null,"\n"]
[null,null,null,"\n"]
[null,null,null,{"$f":"A310&\" \"&CHAR(10)&B310&\" \"&CHAR(10)&C310","v":" \n \n"}]
[null,null,null," \n \n"]
[null,null,null," \n \n"]
[null,null,null," \n \n"]
[null,null,null," \n \n"]
[null,null,null," \n \n"]
[null,null,null," \n \n"]
[null,null,null," \n \n"]
[null,null,null," \n \n"]
[null,null,null," \n \n"]
[null,null,null," \n \n"]
[null,null,null," \n \n"]
[null,null,null," \n \n"]
[null,null,null," \n \n"]
[null,null,null," \n \n"]
[null,null,null," \n \n"]
[null,null,null," \n \n"]
[null,null,null," \n \n"]
[null,null,null," \n \n"]
[null,null,null," \n \n"]
[null,null,null," \n \n"]
[null,null,null," \n \n"]
[null,null,null," \n \n"]
[null,null,null," \n \n"]
[null,null,null," \n \n"]
[null,null,null," \n \n"]
[null,null,null," \n \n"]
[null,null,null," \n \n"]
[null,null,null," \n \n"]
[null,null,null," \n \n"]
[null,null,null," \n \n"]
[null,null,null," \n \n"]
[null,null,null," \n \n"]
[null,null,null," \n \n"]
[null,null,null," \n \n"]
[null,null,null," \n \n"]
[null,null,null," \n \n"]
[null,null,null," \n \n"]
[null,null,null," \n \n"]
[null,null,null," \n \n"]
[null,null,null," \n \n"]
[null,null,null," \n \n"]
[null,null,null," \n \n"]
[null,null,null," \n \n"]
[null,null,null," \n \n"]
[null,null,null," \n \n"]
[null,null,null," \n \n"]
[null,null,null,{"$f":"A357&\" \"&CHAR(10)&B357&\" \"&CHAR(10)&C357","v":" \n \n"}]
[null,null,null," \n \n"]
[null,null,null," \n \n"]
[null,null,null," \n \n"]
[null,null,null," \n \n"]
[null,null,null," \n \n"]
[null,null,null," \n \n"]
[null,null,null," \n \n"]
[null,null,null," \n \n"]
[null,null,null," \n \n"]
[null,null,null," \n \n"]
[null,null,null," \n \n"]
[null,null,null," \n \n"]
[null,null,null," \n \n"]
[null,null,null," \n \n"]
[null,null,null," \n \n"]
[null,null,null," \n \n"]
[null,null,null," \n \n"]
[null,null,null," \n \n"]
[null,null,null," \n \n"]
[null,null,null," \n \n"]
[null,null,null," \n \n"]
[null,null,null," \n \n"]
[null,null,null," \n \n"]
[null,null,null," \n \n"]
[null,null,null," \n \n"]
[null,null,null," \n \n"]
[null,null,null," \n \n"]
[null,null,null," \n \n"]
[null,null,null," \n \n"]
[null,null,null," \n \n"]
[null,null,null," \n \n"]
[null,null,null," \n \n"]
[null,null,null," \n \n"]
[null,null,null," \n \n"]
[null,null,null," \n \n"]
[null,null,null," \n \n"]
[null,null,null," \n \n"]
[null,null,null," \n \n"]
[null,null,null," \n \n"]
[null,null,null," \n \n"]
[null,null,null," \n \n"]
[null,null,null," \n \n"]
[null,null,null," \n \n"]
[null,null,null," \n \n"]
[null,null,null," \n \n"]
[null,null,null," \n \n"]
[null,null,null," \n \n"]
[null,null,null," \n \n"]
[null,null,null," \n \n"]
[null,null,null," \n \n"]
[null,null,null," \n \n"]
[null,null,null," \n \n"]
[null,null,null," \n \n"]
[null,null,null," \n \n"]
[null,null,null," \n \n"]
[null,null,null," \n \n"]
[null,null,null," \n \n"]
[null,null,null," \n \n"]
[null,null,null," \n \n"]
[null,null,null," \n \n"]
[null,null,null," \n \n"]
[null,null,null," \n \n"]
[null,null,null," \n \n"]
[null,null,null,{"$f":"A421&\" \"&CHAR(10)&B421&\" \"&CHAR(10)&C421","v":" \n \n"}]
[null,null,null," \n \n"]
[null,null,null," \n \n"]
[null,null,null," \n \n"]
[null,null,null," \n \n"]
[null,null,null," \n \n"]
[null,null,null," \n \n"]
[null,null,null," \n \n"]
[null,null,null," \n \n"]
[null,null,null," \n \n"]
[null,null,null," \n \n"]
[null,null,null," \n \n"]
[null,null,null," \n \n"]
[null,null,null," \n \n"]
[null,null,null," \n \n"]
[null,null,null," \n \n"]
[null,null,null," \n \n"]
[null,null,null," \n \n"]
[null,null,null," \n \n"]
[null,null,null," \n \n"]
[null,null,null," \n \n"]
[null,null,null," \n \n"]
[null,null,null," \n \n"]
[null,null,null," \n \n"]
[null,null,null," \n \n"]
[null,null,null," \n \n"]
[null,null,null," \n \n"]
[null,null,null," \n \n"]
[null,null,null," \n \n"]
[null,null,null," \n \n"]
[null,null,null," \n \n"]
[null,null,null," \n \n"]
[null,null,null," \n \n"]
[null,null,null," \n \n"]
[null,null,null," \n \n"]
[null,null,null," \n \n"]
[null,null,null," \n \n"]
[null,null,null," \n \n"]
[null,null,null," \n \n"]
[null,null,null," \n \n"]
[null,null,null," \n \n"]
[null,null,null," \n \n"]
[null,null,null," \n \n"]
[null,null,null," \n \n"]
[null,null,null," \n \n"]
[null,null,null," \n \n"]
[null,null,null," \n \n"]
[null,null,null," \n \n"]
[null,null,null," \n \n"]
[null,null,null," \n \n"]
[null,null,null," \n \n"]
[null,null,null," \n \n"]
[null,null,null," \n \n"]
[null,null,null," \n \n"]
[null,null,null," \n \n"]
[null,null,null," \n \n"]
[null,null,null," \n \n"]
[null,null,null," \n \n"]
[null,null,null," \n \n"]
[null,null,null," \n \n"]
[null,null,null," \n \n"]
[null,null,null," \n \n"]
[null,null,null," \n \n"]
[null,null,null," \n \n"]
[null,null,null,{"$f":"A485&\" \"&CHAR(10)&B485&\" \"&CHAR(10)&C485","v":" \n \n"}]
[null,null,null," \n \n"]
[null,null,null," \n \n"]
[null,null,null," \n \n"]
[null,null,null," \n \n"]
[null,null,null," \n \n"]
[null,null,null," \n \n"]
[null,null,null," \n \n"]
[null,null,null," \n \n"]
[null,null,null," \n \n"]
[null,null,null," \n \n"]
[null,null,null," \n \n"]
[null,null,null," \n \n"]
[null,null,null," \n \n"]
[null,null,null," \n \n"]
[null,null,null," \n \n"]
[null,null,null," \n \n"]
[null,null,null," \n \n"]
[null,null,null," \n \n"]
[null,null,null," \n \n"]
[null,null,null," \n \n"]
[null,null,null," \n \n"]
[null,null,null," \n \n"]
[null,null,null," \n \n"]
[null,null,null," \n \n"]
[null,null,null," \n \n"]
[null,null,null," \n \n"]
[null,null,null," \n \n"]
[null,null,null," \n \n"]
[null,null,null," \n \n"]
[null,null,null," \n \n"]
[null,null,null," \n \n"]
[null,null,null," \n \n"]
[null,null,null," \n \n"]
[null,null,null," \n \n"]
[null,null,null," \n \n"]
[null,null,null," \n \n"]
[null,null,null," \n \n"]
[null,null,null," \n \n"]
[null,null,null," \n \n"]
[null,null,null," \n \n"]
[null,null,null," \n \n"]
[null,null,null," \n \n"]
[null,null,null," \n \n"]
[null,null,null," \n \n"]
[null,null,null," \n \n"]
[null,null,null," \n \n"]
[null,null,null," \n \n"]
[null,null,null," \n \n"]
[null,null,null," \n \n"]
[null,null,null," \n \n"]
[null,null,null," \n \n"]
[null,null,null," \n \n"]
[null,null,null," \n \n"]
[null,null,null," \n \n"]
[null,null,null," \n \n"]
[null,null,null," \n \n"]
[null,null,null," \n \n"]
[null,null,null," \n \n"]
[null,null,null," \n \n"]
[null,null,null," \n \n"]
[null,null,null," \n \n"]
[null,null,null," \n \n"]
[null,null,null," \n \n"]
[null,null,null,{"$f":"A549&\" \"&CHAR(10)&B549&\" \"&CHAR(10)&C549","v":" \n \n"}]
[null,null,null," \n \n"]
[null,null,null," \n \n"]
[null,null,null," \n \n"]
[null,null,null," \n \n"]
[null,null,null," \n \n"]
[null,null,null," \n \n"]
[null,null,null," \n \n"]
[null,null,null," \n \n"]
[null,null,null," \n \n"]
[null,null,null," \n \n"]
[null,null,null," \n \n"]
[null,null,null," \n \n"]
[null,null,null," \n \n"]
[null,null,null," \n \n"]
[null,null,null," \n \n"]
[null,null,null," \n \n"]
[null,null,null," \n \n"]
[null,null,null," \n \n"]
[null,null,null," \n \n"]
[null,null,null," \n \n"]
[null,null,null," \n \n"]
[null,null,null," \n \n"]
[null,null,null," \n \n"]
[null,null,null," \n \n"]
[null,null,null," \n \n"]
[null,null,null," \n \n"]
[null,null,null," \n \n"]
[null,null,null," \n \n"]
[null,null,null," \n \n"]
[null,null,null," \n \n"]
[null,null,null," \n \n"]
[null,null,null," \n \n"]
[null,null,null," \n \n"]
[null,null,null," \n \n"]
[null,null,null," \n \n"]
[null,null,null," \n \n"]
[null,null,null," \n \n"]
[null,null,null," \n \n"]
[null,null,null," \n \n"]
[null,null,null," \n \n"]
[null,null,null," \n \n"]
[null,null,null," \n \n"]
[null,null,null," \n \n"]
[null,null,null," \n \n"]
[null,null,null," \n \n"]
[null,null,null," \n \n"]
[null,null,null," \n \n"]
[null,null,null," \n \n"]
[null,null,null," \n \n"]
[null,null,null," \n \n"]
[null,null,null," \n \n"]
[null,null,null," \n \n"]
[null,null,null," \n \n"]
[null,null,null," \n \n"]
[null,null,null," \n \n"]
[null,null,null," \n \n"]
[null,null,null," \n \n"]
[null,null,null," \n \n"]
[null,null,null," \n \n"]
[null,null,null," \n \n"]
[null,null,null," \n \n"]
[null,null,null," \n \n"]
[null,null,null," \n \n"]
[null,null,null,{"$f":"A613&\" \"&CHAR(10)&B613&\" \"&CHAR(10)&C613","v":" \n \n"}]
[null,null,null," \n \n"]
[null,null,null," \n \n"]
[null,null,null," \n \n"]
[null,null,null," \n \n"]
[null,null,null," \n \n"]
[null,null,null," \n \n"]
[null,null,null," \n \n"]
[null,null,null," \n \n"]
[null,null,null," \n \n"]
[null,null,null," \n \n"]
[null,null,null," \n \n"]
[null,null,null," \n \n"]
[null,null,null," \n \n"]
[null,null,null," \n \n"]
[null,null,null," \n \n"]
[null,null,null," \n \n"]
[null,null,null," \n \n"]
[null,null,null," \n \n"]
[null,null,null," \n \n"]
[null,null,null," \n \n"]
[null,null,null," \n \n"]
[null,null,null," \n \n"]
[null,null,null," \n \n"]
[null,null,null," \n \n"]
[null,null,null," \n \n"]
[null,null,null," \n \n"]
[null,null,null," \n \n"]
[null,null,null," \n \n"]
[null,null,null," \n \n"]
[null,null,null," \n \n"]
[null,null,null," \n \n"]
[null,null,null," \n \n"]
[null,null,null," \n \n"]
[null,null,null," \n \n"]
[null,null,null," \n \n"]
[null,null,null," \n \n"]
[null,null,null," \n \n"]
[null,null,null," \n \n"]
[null,null,null," \n \n"]
[null,null,null," \n \n"]
[null,null,null," \n \n"]
[null,null,null," \n \n"]
[null,null,null," \n \n"]
[null,null,null," \n \n"]
[null,null,null," \n \n"]
[null,null,null," \n \n"]
[null,null,null," \n \n"]
[null,null,null," \n \n"]
[null,null,null," \n \n"]
[null,null,null," \n \n"]
[null,null,null," \n \n"]
[null,null,null," \n \n"]
[null,null,null," \n \n"]
[null,null,null," \n \n"]
[null,null,null," \n \n"]
[null,null,null," \n \n"]
[null,null,null," \n \n"]
[null,null,null," \n \n"]
[null,null,null," \n \n"]
[null,null,null," \n \n"]
[null,null,null," \n \n"]
[null,null,null," \n \n"]
[null,null,null," \n \n"]
[null,null,null,{"$f":"A677&\" \"&CHAR(10)&B677&\" \"&CHAR(10)&C677","v":" \n \n"}]
[null,null,null," \n \n"]
[null,null,null," \n \n"]
[null,null,null," \n \n"]
[null,null,null," \n \n"]
[null,null,null," \n \n"]
[null,null,null," \n \n"]
[null,null,null," \n \n"]
[null,null,null," \n \n"]
[null,null,null," \n \n"]
[null,null,null," \n \n"]
[null,null,null," \n \n"]
[null,null,null," \n \n"]
[null,null,null," \n \n"]
[null,null,null," \n \n"]
[null,null,null," \n \n"]
[null,null,null," \n \n"]
[null,null,null," \n \n"]
[null,null,null," \n \n"]
[null,null,null," \n \n"]
[null,null,null," \n \n"]
[null,null,null," \n \n"]
[null,null,null," \n \n"]
[null,null,null," \n \n"]
[null,null,null," \n \n"]
[null,null,null," \n \n"]
[null,null,null," \n \n"]
[null,null,null," \n \n"]
[null,null,null," \n \n"]
[null,null,null," \n \n"]
[null,null,null," \n \n"]
[null,null,null," \n \n"]
[null,null,null," \n \n"]
[null,null,null," \n \n"]
[null,null,null," \n \n"]
[null,null,null," \n \n"]
[null,null,null," \n \n"]
[null,null,null," \n \n"]
[null,null,null," \n \n"]
[null,null,null," \n \n"]
[null,null,null," \n \n"]
[null,null,null," \n \n"]
[null,null,null," \n \n"]
[null,null,null," \n \n"]
[null,null,null," \n \n"]
[null,null,null," \n \n"]
[null,null,null," \n \n"]
[null,null,null," \n \n"]
[null,null,null," \n \n"]
[null,null,null," \n \n"]
[null,null,null," \n \n"]
[null,null,null," \n \n"]
[null,null,null," \n \n"]
[null,null,null," \n \n"]
[null,null,null," \n \n"]
[null,null,null," \n \n"]
[null,null,null," \n \n"]
[null,null,null," \n \n"]
[null,null,null," \n \n"]
[null,null,null," \n \n"]
[null,null,null," \n \n"]
[null,null,null," \n \n"]
[null,null,null," \n \n"]
[null,null,null," \n \n"]
[null,null,null,{"$f":"A741&\" \"&CHAR(10)&B741&\" \"&CHAR(10)&C741","v":" \n \n"}]
[null,null,null," \n \n"]
[null,null,null," \n \n"]
[null,null,null," \n \n"]
[null,null,null," \n \n"]
[null,null,null," \n \n"]
[null,null,null," \n \n"]
[null,null,null," \n \n"]
[null,null,null," \n \n"]
[null,null,null," \n \n"]
[null,null,null," \n \n"]
[null,null,null," \n \n"]
[null,null,null," \n \n"]
[null,null,null," \n \n"]
[null,null,null," \n \n"]
[null,null,null," \n \n"]
[null,null,null," \n \n"]
[null,null,null," \n \n"]
[null,null,null," \n \n"]
[null,null,null," \n \n"]
[null,null,null," \n \n"]
[null,null,null," \n \n"]
[null,null,null," \n \n"]
[null,null,null," \n \n"]
[null,null,null," \n \n"]
[null,null,null," \n \n"]
[null,null,null," \n \n"]
[null,null,null," \n \n"]
[null,null,null," \n \n"]
[null,null,null," \n \n"]
[null,null,null," \n \n"]
[null,null,null," \n \n"]
[null,null,null," \n \n"]
[null,null,null," \n \n"]
[null,null,null," \n \n"]
[null,null,null," \n \n"]
[null,null,null," \n \n"]
[null,null,null," \n \n"]
[null,null,null," \n \n"]
[null,null,null," \n \n"]
[null,null,null," \n \n"]
[null,null,null," \n \n"]
[null,null,null," \n \n"]
[null,null,null," \n \n"]
[null,null,null," \n \n"]
[null,null,null," \n \n"]
[null,null,null," \n \n"]
[null,null,null," \n \n"]
[null,null,null," \n \n"]
[null,null,null," \n \n"]
[null,null,null," \n \n"]
[null,null,null," \n \n"]
[null,null,null," \n \n"]
[null,null,null," \n \n"]
[null,null,null," \n \n"]
[null,null,null," \n \n"]
[null,null,null," \n \n"]
[null,null,null," \n \n"]
[null,null,null," \n \n"]
[null,null,null," \n \n"]
[null,null,null," \n \n"]
[null,null,null," \n \n"]
[null,null,null," \n \n"]
[null,null,null," \n \n"]
[null,null,null,{"$f":"A805&\" \"&CHAR(10)&B805&\" \"&CHAR(10)&C805","v":" \n \n"}]
[null,null,null," \n \n"]
[null,null,null," \n \n"]
[null,null,null," \n \n"]
[null,null,null," \n \n"]
[null,null,null," \n \n"]
[null,null,null," \n \n"]
[null,null,null," \n \n"]
[null,null,null," \n \n"]
[null,null,null," \n \n"]
[null,null,null," \n \n"]
[null,null,null," \n \n"]
[null,null,null," \n \n"]
[null,null,null," \n \n"]
[null,null,null," \n \n"]
[null,null,null," \n \n"]
[null,null,null," \n \n"]
[null,null,null," \n \n"]
[null,null,null," \n \n"]
[null,null,null," \n \n"]
[null,null,null," \n \n"]
[null,null,null," \n \n"]
[null,null,null," \n \n"]
[null,null,null," \n \n"]
[null,null,null," \n \n"]
[null,null,null," \n \n"]
[null,null,null," \n \n"]
[null,null,null," \n \n"]
[null,null,null," \n \n"]
[null,null,null," \n \n"]
[null,null,null," \n \n"]
[null,null,null," \n \n"]
[null,null,null," \n \n"]
[null,null,null," \n \n"]
[null,null,null," \n \n"]
[null,null,null," \n \n"]
[null,null,null," \n \n"]
[null,null,null," \n \n"]
[null,null,null," \n \n"]
[null,null,null," \n \n"]
[null,null,null," \n \n"]
[null,null,null," \n \n"]
[null,null,null," \n \n"]
[null,null,null," \n \n"]
[null,null,null," \n \n"]
[null,null,null," \n \n"]
[null,null,null," \n \n"]
[null,null,null," \n \n"]
[null,null,null," \n \n"]
[null,null,null," \n \n"]
[null,null,null," \n \n"]
[null,null,null," \n \n"]
[null,null,null," \n \n"]
[null,null,null," \n \n"]
[null,null,null," \n \n"]
[null,null,null," \n \n"]
[null,null,null," \n \n"]
[null,null,null," \n \n"]
[null,null,null," \n \n"]
[null,null,null," \n \n"]
[null,null,null," \n \n"]
[null,null,null," \n \n"]
[null,null,null," \n \n"]
[null,null,null," \n \n"]
[null,null,null,{"$f":"A869&\" \"&CHAR(10)&B869&\" \"&CHAR(10)&C869","v":" \n \n"}]
[null,null,null," \n \n"]
[null,null,null," \n \n"]
[null,null,null," \n \n"]
[null,null,null," \n \n"]
[null,null,null," \n \n"]
[null,null,null," \n \n"]
[null,null,null," \n \n"]
[null,null,null," \n \n"]
[null,null,null," \n \n"]
[null,null,null," \n \n"]
[null,null,null," \n \n"]
[null,null,null," \n \n"]
[null,null,null," \n \n"]
[null,null,null," \n \n"]
[null,null,null," \n \n"]
[null,null,null," \n \n"]
[null,null,null," \n \n"]
[null,null,null," \n \n"]
[null,null,null," \n \n"]
[null,null,null," \n \n"]
[null,null,null," \n \n"]
[null,null,null," \n \n"]
[null,null,null," \n \n"]
[null,null,null," \n \n"]
[null,null,null," \n \n"]
[null,null,null," \n \n"]
[null,null,null," \n \n"]
[null,null,null," \n \n"]
[null,null,null," \n \n"]
[null,null,null," \n \n"]
[null,null,null," \n \n"]
[null,null,null," \n \n"]
[null,null,null," \n \n"]
[null,null,null," \n \n"]
[null,null,null," \n \n"]
[null,null,null," \n \n"]
[null,null,null," \n \n"]
[null,null,null," \n \n"]
[null,null,null," \n \n"]
[null,null,null," \n \n"]
[null,null,null," \n \n"]
[null,null,null," \n \n"]
[null,null,null," \n \n"]
[null,null,null," \n \n"]
[null,null,null," \n \n"]
[null,null,null," \n \n"]
[null,null,null," \n \n"]
[null,null,null," \n \n"]
[null,null,null," \n \n"]
[null,null,null," \n \n"]
[null,null,null," \n \n"]
[null,null,null," \n \n"]
[null,null,null," \n \n"]
[null,null,null," \n \n"]
[null,null,null," \n \n"]
[null,null,null," \n \n"]
[null,null,null," \n \n"]
[null,null,null," \n \n"]
[null,null,null," \n \n"]
[null,null,null," \n \n"]
[null,null,null," \n \n"]
[null,null,null," \n \n"]
[null,null,null," \n \n"]
[null,null,null,{"$f":"A933&\" \"&CHAR(10)&B933&\" \"&CHAR(10)&C933","v":" \n \n"}]
[null,null,null," \n \n"]
[null,null,null," \n \n"]
[null,null,null," \n \n"]
[null,null,null," \n \n"]
[null,null,null," \n \n"]
[null,null,null," \n \n"]
[null,null,null," \n \n"]
[null,null,null," \n \n"]
[null,null,null," \n \n"]
[null,null,null," \n \n"]
[null,null,null," \n \n"]
[null,null,null," \n \n"]
[null,null,null," \n \n"]
[null,null,null," \n \n"]
[null,null,null," \n \n"]
[null,null,null," \n \n"]
[null,null,null," \n \n"]
[null,null,null," \n \n"]
[null,null,null," \n \n"]
[null,null,null," \n \n"]
[null,null,null," \n \n"]
[null,null,null," \n \n"]
[null,null,null," \n \n"]
[null,null,null," \n \n"]
[null,null,null," \n \n"]
[null,null,null," \n \n"]
[null,null,null," \n \n"]
[null,null,null," \n \n"]
[null,null,null," \n \n"]
[null,null,null," \n \n"]
[null,null,null," \n \n"]
[null,null,null," \n \n"]
[null,null,null," \n \n"]
[null,null,null," \n \n"]
[null,null,null," \n \n"]
[null,null,null," \n \n"]
[null,null,null," \n \n"]
[null,null,null," \n \n"]
[null,null,null," \n \n"]
[null,null,null," \n \n"]
[null,null,null," \n \n"]
[null,null,null," \n \n"]
[null,null,null," \n \n"]
[null,null,null," \n \n"]
[null,null,null," \n \n"]
[null,null,null," \n \n"]
[null,null,null," \n \n"]
[null,null,null," \n \n"]
[null,null,null," \n \n"]
[null,null,null," \n \n"]
[null,null,null," \n \n"]
[null,null,null," \n \n"]
[null,null,null," \n \n"]
[null,null,null," \n \n"]
[null,null,null," \n \n"]
[null,null,null," \n \n"]
[null,null,null," \n \n"]
[null,null,null," \n \n"]
[null,null,null," \n \n"]
[null,null,null," \n \n"]
[null,null,null," \n \n"]
[null,null,null," \n \n"]
[null,null,null," \n \n"]
[null,null,null,{"$f":"A997&\" \"&CHAR(10)&B997&\" \"&CHAR(10)&C997","v":" \n \n"}]
[null,null,null," \n \n"]
[null,null,null," \n \n"]
[null,null,null," \n \n"]
[null,null,null," \n \n"]
[null,null,null," \n \n"]
[null,null,null," \n \n"]
[null,null,null," \n \n"]
[null,null,null," \n \n"]
[null,null,null," \n \n"]
[null,null,null," \n \n"]
[null,null,null," \n \n"]
[null,null,null," \n \n"]
[null,null,null," \n \n"]
[null,null,null," \n \n"]
[null,null,null," \n \n"]
[null,null,null," \n \n"]
[null,null,null," \n \n"]
[null,null,null," \n \n"]
[null,null,null," \n \n"]
[null,null,null," \n \n"]
[null,null,null," \n \n"]
[null,null,null," \n \n"]
[null,null,null," \n \n"]
[null,null,null," \n \n"]
[null,null,null," \n \n"]
[null,null,null," \n \n"]
[null,null,null," \n \n"]
[null,null,null," \n \n"]
[null,null,null," \n \n"]
[null,null,null," \n \n"]
[null,null,null," \n \n"]
[null,null,null," \n \n"]
[null,null,null," \n \n"]
[null,null,null," \n \n"]
[null,null,null," \n \n"]
[null,null,null," \n \n"]
[null,null,null," \n \n"]
[null,null,null," \n \n"]
[null,null,null," \n \n"]
[null,null,null," \n \n"]
[null,null,null," \n \n"]
[null,null,null," \n \n"]
[null,null,null," \n \n"]
[null,null,null," \n \n"]
[null,null,null," \n \n"]
[null,null,null," \n \n"]
[null,null,null," \n \n"]
[null,null,null," \n \n"]
[null,null,null," \n \n"]
[null,null,null," \n \n"]
[null,null,null," \n \n"]
[null,null,null," \n \n"]
[null,null,null," \n \n"]
[null,null,null," \n \n"]
[null,null,null," \n \n"]
[null,null,null," \n \n"]
[null,null,null," \n \n"]
[null,null,null," \n \n"]
[null,null,null," \n \n"]
[null,null,null," \n \n"]
[null,null,null," \n \n"]
[null,null,null," \n \n"]
[null,null,null," \n \n"]
[null,null,null,{"$f":"A1061&\" \"&CHAR(10)&B1061&\" \"&CHAR(10)&C1061","v":" \n \n"}]
[null,null,null," \n \n"]
[null,null,null," \n \n"]
[null,null,null," \n \n"]
[null,null,null," \n \n"]
[null,null,null," \n \n"]
[null,null,null," \n \n"]
[null,null,null," \n \n"]
[null,null,null," \n \n"]
[null,null,null," \n \n"]
[null,null,null," \n \n"]
[null,null,null," \n \n"]
[null,null,null," \n \n"]
[null,null,null," \n \n"]
[null,null,null," \n \n"]
[null,null,null," \n \n"]
[null,null,null," \n \n"]
[null,null,null," \n \n"]
[null,null,null," \n \n"]
[null,null,null," \n \n"]
[null,null,null," \n \n"]
[null,null,null," \n \n"]
[null,null,null," \n \n"]
[null,null,null," \n \n"]
[null,null,null," \n \n"]
[null,null,null," \n \n"]
[null,null,null," \n \n"]
[null,null,null," \n \n"]
[null,null,null," \n \n"]
[null,null,null," \n \n"]
[null,null,null," \n \n"]
[null,null,null," \n \n"]
[null,null,null," \n \n"]
[null,null,null," \n \n"]
[null,null,null," \n \n"]
[null,null,null," \n \n"]
[null,null,null," \n \n"]
[null,null,null," \n \n"]
[null,null,null," \n \n"]
[null,null,null," \n \n"]
[null,null,null," \n \n"]
[null,null,null," \n \n"]
[null,null,null," \n \n"]
[null,null,null," \n \n"]
[null,null,null," \n \n"]
[null,null,null," \n \n"]
[null,null,null," \n \n"]
[null,null,null," \n \n"]
[null,null,null," \n \n"]
[null,null,null," \n \n"]
[null,null,null," \n \n"]
[null,null,null," \n \n"]
[null,null,null," \n \n"]
[null,null,null," \n \n"]
[null,null,null," \n \n"]
[null,null,null," \n \n"]
[null,null,null," \n \n"]
[null,null,null," \n \n"]
[null,null,null," \n \n"]
[null,null,null," \n \n"]
[null,null,null," \n \n"]
[null,null,null," \n \n"]
[null,null,null," \n \n"]
[null,null,null," \n \n"]
[null,null,null,{"$f":"A1125&\" \"&CHAR(10)&B1125&\" \"&CHAR(10)&C1125","v":" \n \n"}]
[null,null,null," \n \n"]
[null,null,null," \n \n"]
[null,null,null," \n \n"]
[null,null,null," \n \n"]
[null,null,null," \n \n"]
[null,null,null," \n \n"]
[null,null,null," \n \n"]
[null,null,null," \n \n"]
[null,null,null," \n \n"]
[null,null,null," \n \n"]
[null,null,null," \n \n"]
[null,null,null," \n \n"]
[null,null,null," \n \n"]
[null,null,null," \n \n"]
[null,null,null," \n \n"]
[null,null,null," \n \n"]
[null,null,null," \n \n"]
[null,null,null," \n \n"]
[null,null,null," \n \n"]
[null,null,null," \n \n"]
[null,null,null," \n \n"]
[null,null,null," \n \n"]
[null,null,null," \n \n"]
[null,null,null," \n \n"]
[null,null,null," \n \n"]
[null,null,null," \n \n"]
[null,null,null," \n \n"]
[null,null,null," \n \n"]
[null,null,null," \n \n"]
[null,null,null," \n \n"]
[null,null,null," \n \n"]
[null,null,null," \n \n"]
[null,null,null," \n \n"]
[null,null,null," \n \n"]
[null,null,null," \n \n"]
[null,null,null," \n \n"]
[null,null,null," \n \n"]
[null,null,null," \n \n"]
[null,null,null," \n \n"]
[null,null,null," \n \n"]
[null,null,null," \n \n"]
[null,null,null," \n \n"]
[null,null,null," \n \n"]
[null,null,null," \n \n"]
[null,null,null," \n \n"]
[null,null,null," \n \n"]
[null,null,null," \n \n"]
[null,null,null," \n \n"]
[null,null,null," \n \n"]
[null,null,null," \n \n"]
[null,null,null," \n \n"]
[null,null,null," \n \n"]
[null,null,null," \n \n"]
[null,null,null," \n \n"]
[null,null,null," \n \n"]
[null,null,null," \n \n"]
[null,null,null," \n \n"]
[null,null,null," \n \n"]
[null,null,null," \n \n"]
[null,null,null," \n \n"]
[null,null,null," \n \n"]
[null,null,null," \n \n"]
[null,null,null," \n \n"]
[null,null,null,{"$f":"A1189&\" \"&CHAR(10)&B1189&\" \"&CHAR(10)&C1189","v":" \n \n"}]
[null,null,null," \n \n"]
[null,null,null," \n \n"]
[null,null,null," \n \n"]
[null,null,null," \n \n"]
[null,null,null," \n \n"]
[null,null,null," \n \n"]
[null,null,null," \n \n"]
[null,null,null," \n \n"]
[null,null,null," \n \n"]
[null,null,null," \n \n"]
[null,null,null," \n \n"]
[null,null,null," \n \n"]
[null,null,null," \n \n"]
[null,null,null," \n \n"]
[null,null,null," \n \n"]
[null,null,null," \n \n"]
[null,null,null," \n \n"]
[null,null,null," \n \n"]
[null,null,null," \n \n"]
[null,null,null," \n \n"]
[null,null,null," \n \n"]
[null,null,null," \n \n"]
[null,null,null," \n \n"]
[null,null,null," \n \n"]
[null,null,null," \n \n"]
[null,null,null," \n \n"]
[null,null,null," \n \n"]
[null,null,null," \n \n"]
[null,null,null," \n \n"]
[null,null,null," \n \n"]
[null,null,null," \n \n"]
[null,null,null," \n \n"]
[null,null,null," \n \n"]
[null,null,null," \n \n"]
[null,null,null," \n \n"]
[null,null,null," \n \n"]
[null,null,null," \n \n"]
[null,null,null," \n \n"]
[null,null,null," \n \n"]
[null,null,null," \n \n"]
[null,null,null," \n \n"]
[null,null,null," \n \n"]
[null,null,null," \n \n"]
[null,null,null," \n \n"]
[null,null,null," \n \n"]
[null,null,null," \n \n"]
[null,null,null," \n \n"]
[null,null,null," \n \n"]
[null,null,null," \n \n"]
[null,null,null," \n \n"]
[null,null,null," \n \n"]
[null,null,null," \n \n"]
[null,null,null," \n \n"]
[null,null,null," \n \n"]
[null,null,null," \n \n"]
[null,null,null," \n \n"]
[null,null,null," \n \n"]
[null,null,null," \n \n"]
[null,null,null," \n \n"]
[null,null,null," \n \n"]
[null,null,null," \n \n"]
[null,null,null," \n \n"]
[null,null,null," \n \n"]
[null,null,null,{"$f":"A1253&\" \"&CHAR(10)&B1253&\" \"&CHAR(10)&C1253","v":" \n \n"}]
[null,null,null," \n \n"]
[null,null,null," \n \n"]
[null,null,null," \n \n"]
[null,null,null," \n \n"]
[null,null,null," \n \n"]
[null,null,null," \n \n"]
[null,null,null," \n \n"]
[null,null,null," \n \n"]
[null,null,null," \n \n"]
[null,null,null," \n \n"]
[null,null,null," \n \n"]
[null,null,null," \n \n"]
[null,null,null," \n \n"]
[null,null,null," \n \n"]
[null,null,null," \n \n"]
[null,null,null," \n \n"]
[null,null,null," \n \n"]
[null,null,null," \n \n"]
[null,null,null," \n \n"]
[null,null,null," \n \n"]
[null,null,null," \n \n"]
[null,null,null," \n \n"]
[null,null,null," \n \n"]
[null,null,null," \n \n"]
[null,null,null," \n \n"]
[null,null,null," \n \n"]
[null,null,null," \n \n"]
[null,null,null," \n \n"]
[null,null,null," \n \n"]
[null,null,null," \n \n"]
[null,null,null," \n \n"]
[null,null,null," \n \n"]
[null,null,null," \n \n"]
[null,null,null," \n \n"]
[null,null,null," \n \n"]
[null,null,null," \n \n"]
[null,null,null," \n \n"]
[null,null,null," \n \n"]
[null,null,null," \n \n"]
[null,null,null," \n \n"]
[null,null,null," \n \n"]
[null,null,null," \n \n"]
[null,null,null," \n \n"]
[null,null,null," \n \n"]
[null,null,null," \n \n"]
[null,null,null," \n \n"]
[null,null,null," \n \n"]
[null,null,null," \n \n"]
[null,null,null," \n \n"]
[null,null,null," \n \n"]
[null,null,null," \n \n"]
[null,null,null," \n \n"]
[null,null,null," \n \n"]
[null,null,null," \n \n"]
[null,null,null," \n \n"]
[null,null,null," \n \n"]
[null,null,null," \n \n"]
[null,null,null," \n \n"]
[null,null,null," \n \n"]
[null,null,null," \n \n"]
[null,null,null," \n \n"]
[null,null,null," \n \n"]
[null,null,null," \n \n"]
[null,null,null,{"$f":"A1317&\" \"&CHAR(10)&B1317&\" \"&CHAR(10)&C1317","v":" \n \n"}]
[null,null,null," \n \n"]
[null,null,null," \n \n"]
[null,null,null," \n \n"]
[null,null,null," \n \n"]
[null,null,null," \n \n"]
[null,null,null," \n \n"]
[null,null,null," \n \n"]
[null,null,null," \n \n"]
[null,null,null," \n \n"]
[null,null,null," \n \n"]
[null,null,null," \n \n"]
[null,null,null," \n \n"]
[null,null,null," \n \n"]
[null,null,null," \n \n"]
[null,null,null," \n \n"]
[null,null,null," \n \n"]
[null,null,null," \n \n"]
[null,null,null," \n \n"]
[null,null,null," \n \n"]
[null,null,null," \n \n"]
[null,null,null," \n \n"]
[null,null,null," \n \n"]
[null,null,null," \n \n"]
[null,null,null," \n \n"]
[null,null,null," \n \n"]
[null,null,null," \n \n"]
[null,null,null," \n \n"]
[null,null,null," \n \n"]
[null,null,null," \n \n"]
[null,null,null," \n \n"]
[null,null,null," \n \n"]
[null,null,null," \n \n"]
[null,null,null," \n \n"]
[null,null,null," \n \n"]
[null,null,null," \n \n"]
[null,null,null," \n \n"]
[null,null,null," \n \n"]
[null,null,null," \n \n"]
[null,null,null," \n \n"]
[null,null,null," \n \n"]
[null,null,null," \n \n"]
[null,null,null," \n \n"]
[null,null,null," \n \n"]
[null,null,null," \n \n"]
[null,null,null," \n \n"]
[null,null,null," \n \n"]
[null,null,null," \n \n"]
[null,null,null," \n \n"]
[null,null,null," \n \n"]
[null,null,null," \n \n"]
[null,null,null," \n \n"]
[null,null,null," \n \n"]
[null,null,null," \n \n"]
[null,null,null," \n \n"]
[null,null,null," \n \n"]
[null,null,null," \n \n"]
[null,null,null," \n \n"]
[null,null,null," \n \n"]
[null,null,null," \n \n"]
[null,null,null," \n \n"]
[null,null,null," \n \n"]
[null,null,null," \n \n"]
[null,null,null," \n \n"]
[null,null,null,{"$f":"A1381&\" \"&CHAR(10)&B1381&\" \"&CHAR(10)&C1381","v":" \n \n"}]
[null,null,null," \n \n"]
[null,null,null," \n \n"]
[null,null,null," \n \n"]
[null,null,null," \n \n"]
[null,null,null," \n \n"]
[null,null,null," \n \n"]
[null,null,null," \n \n"]
[null,null,null," \n \n"]
[null,null,null," \n \n"]
[null,null,null," \n \n"]
[null,null,null," \n \n"]
[null,null,null," \n \n"]
[null,null,null," \n \n"]
[null,null,null," \n \n"]
[null,null,null," \n \n"]
[null,null,null," \n \n"]
[null,null,null," \n \n"]
[null,null,null," \n \n"]
[null,null,null," \n \n"]
[null,null,null," \n \n"]
[null,null,null," \n \n"]
[null,null,null," \n \n"]
[null,null,null," \n \n"]
[null,null,null," \n \n"]
[null,null,null," \n \n"]
[null,null,null," \n \n"]
[null,null,null," \n \n"]
[null,null,null," \n \n"]
[null,null,null," \n \n"]
[null,null,null," \n \n"]
[null,null,null," \n \n"]
[null,null,null," \n \n"]
[null,null,null," \n \n"]
[null,null,null," \n \n"]
[null,null,null," \n \n"]
[null,null,null," \n \n"]
[null,null,null," \n \n"]
[null,null,null," \n \n"]
[null,null,null," \n \n"]
[null,null,null," \n \n"]
[null,null,null," \n \n"]
[null,null,null," \n \n"]
[null,null,null," \n \n"]
[null,null,null," \n \n"]
[null,null,null," \n \n"]
[null,null,null," \n \n"]
[null,null,null," \n \n"]
[null,null,null," \n \n"]
[null,null,null," \n \n"]
[null,null,null," \n \n"]
[null,null,null," \n \n"]
[null,null,null," \n \n"]
[null,null,null," \n \n"]
[null,null,null," \n \n"]
[null,null,null," \n \n"]
[null,null,null," \n \n"]
[null,null,null," \n \n"]
[null,null,null," \n \n"]
[null,null,null," \n \n"]
[null,null,null," \n \n"]
[null,null,null," \n \n"]
[null,null,null," \n \n"]
[null,null,null," \n \n"]
[null,null,null,{"$f":"A1445&\" \"&CHAR(10)&B1445&\" \"&CHAR(10)&C1445","v":" \n \n"}]
[null,null,null," \n \n"]
[null,null,null," \n \n"]
[null,null,null," \n \n"]
[null,null,null," \n \n"]
[null,null,null," \n \n"]
[null,null,null," \n \n"]
[null,null,null," \n \n"]
[null,null,null," \n \n"]
[null,null,null," \n \n"]
[null,null,null," \n \n"]
[null,null,null," \n \n"]
[null,null,null," \n \n"]
[null,null,null," \n \n"]
[null,null,null," \n \n"]
[null,null,null," \n \n"]
[null,null,null," \n \n"]
[null,null,null," \n \n"]
[null,null,null," \n \n"]
[null,null,null," \n \n"]
[null,null,null," \n \n"]
[null,null,null," \n \n"]
[null,null,null," \n \n"]
[null,null,null," \n \n"]
[null,null,null," \n \n"]
[null,null,null," \n \n"]
[null,null,null," \n \n"]
[null,null,null," \n \n"]
[null,null,null," \n \n"]
[null,null,null," \n \n"]
[null,null,null," \n \n"]
[null,null,null," \n \n"]
[null,null,null," \n \n"]
[null,null,null," \n \n"]
[null,null,null," \n \n"]
[null,null,null," \n \n"]
[null,null,null," \n \n"]
[null,null,null," \n \n"]
[null,null,null," \n \n"]
[null,null,null," \n \n"]
[null,null,null," \n \n"]
[null,null,null," \n \n"]
[null,null,null," \n \n"]
[null,null,null," \n \n"]
[null,null,null," \n \n"]
[null,null,null," \n \n"]
[null,null,null," \n \n"]
[null,null,null," \n \n"]
[null,null,null," \n \n"]
[null,null,null," \n \n"]
[null,null,null," \n \n"]
[null,null,null," \n \n"]
[null,null,null," \n \n"]
[null,null,null," \n \n"]
[null,null,null," \n \n"]
[null,null,null," \n \n"]
[null,null,null," \n \n"]
[null,null,null," \n \n"]
[null,null,null," \n \n"]
[null,null,null," \n \n"]
[null,null,null," \n \n"]
[null,null,null," \n \n"]
[null,null,null," \n \n"]
[null,null,null," \n \n"]
[null,null,null,{"$f":"A1509&\" \"&CHAR(10)&B1509&\" \"&CHAR(10)&C1509","v":" \n \n"}]
[null,null,null," \n \n"]
[null,null,null," \n \n"]
[null,null,null," \n \n"]
[null,null,null," \n \n"]
[null,null,null," \n \n"]
[null,null,null," \n \n"]
[null,null,null," \n \n"]
[null,null,null," \n \n"]
[null,null,null," \n \n"]
[null,null,null," \n \n"]
[null,null,null," \n \n"]
[null,null,null," \n \n"]
[null,null,null," \n \n"]
[null,null,null," \n \n"]
[null,null,null," \n \n"]
[null,null,null," \n \n"]
[null,null,null," \n \n"]
[null,null,null," \n \n"]
[null,null,null," \n \n"]
[null,null,null," \n \n"]
[null,null,null," \n \n"]
[null,null,null," \n \n"]
[null,null,null," \n \n"]
[null,null,null," \n \n"]
[null,null,null," \n \n"]
[null,null,null," \n \n"]
[null,null,null," \n \n"]
[null,null,null," \n \n"]
[null,null,null," \n \n"]
[null,null,null," \n \n"]
[null,null,null," \n \n"]
[null,null,null," \n \n"]
[null,null,null," \n \n"]
[null,null,null," \n \n"]
[null,null,null," \n \n"]
[null,null,null," \n \n"]